[Event "Late-Titled-Tuesday-Blitz-May-14-2024"]
[Site "Chess.com"]
[Date "2024.05.14"]
[Round "8"]
[White "David_ATM"]
[Black "Adar_07"]
[Result "0-1"]
[WhiteElo "2447"]
[BlackElo "2692"]
[TimeControl "180+1"]
[EndTime "15:25:52 PDT"]
[Termination "Adar_07 won on time"]

1. e4 {[%clk 0:03:00.9]} 1... c6 {[%clk 0:02:59.9]} 2. Nc3 {[%clk 0:03:00.2]}
2... d5 {[%clk 0:03:00.8]} 3. Nf3 {[%clk 0:03:00.6]} 3... dxe4 {[%clk
0:03:01.2]} 4. Nxe4 {[%clk 0:03:01.5]} 4... Bg4 {[%clk 0:03:01.6]} 5. Bc4 {[%clk
0:02:49.4]} 5... e6 {[%clk 0:03:01.6]} 6. d3 {[%clk 0:02:42.6]} 6... Nf6 {[%clk
0:03:01.3]} 7. Bg5 {[%clk 0:02:40.8]} 7... Nbd7 {[%clk 0:02:58.8]} 8. h3 {[%clk
0:02:36.9]} 8... Bh5 {[%clk 0:02:58]} 9. Ng3 {[%clk 0:02:31.8]} 9... Qa5+ {[%clk
0:02:49.8]} 10. Bd2 {[%clk 0:02:30.3]} 10... Bb4 {[%clk 0:02:48.6]} 11. a3
{[%clk 0:02:20.9]} 11... Bxf3 {[%clk 0:02:39.6]} 12. gxf3 {[%clk 0:01:12.6]}
12... Bxd2+ {[%clk 0:02:38.7]} 13. Qxd2 {[%clk 0:01:13.5]} 13... Qe5+ {[%clk
0:02:39.1]} 14. Kf1 {[%clk 0:01:10.4]} 14... Qxb2 {[%clk 0:02:39]} 15. Kg2
{[%clk 0:01:10.6]} 15... Qe5 {[%clk 0:02:37.9]} 16. Rhe1 {[%clk 0:01:05.4]}
16... Qc7 {[%clk 0:02:37.9]} 17. Qb4 {[%clk 0:00:57.7]} 17... a5 {[%clk
0:02:34.4]} 18. Qb3 {[%clk 0:00:47.4]} 18... O-O {[%clk 0:02:33.5]} 19. a4
{[%clk 0:00:47]} 19... Rab8 {[%clk 0:02:27.9]} 20. Qc3 {[%clk 0:00:43.9]} 20...
Nb6 {[%clk 0:02:25.9]} 21. Bb3 {[%clk 0:00:35.5]} 21... Nbd5 {[%clk 0:02:24.3]}
22. Bxd5 {[%clk 0:00:34.6]} 22... Nxd5 {[%clk 0:02:25.2]} 23. Qd2 {[%clk
0:00:34.3]} 23... Rbd8 {[%clk 0:02:22.8]} 24. Rab1 {[%clk 0:00:28.1]} 24... Nf4+
{[%clk 0:02:22.4]} 25. Kh2 {[%clk 0:00:25.5]} 25... Rd4 {[%clk 0:02:22.1]} 26.
Re4 {[%clk 0:00:21.2]} 26... Rfd8 {[%clk 0:02:20]} 27. Qe3 {[%clk 0:00:19.8]}
27... e5 {[%clk 0:02:09.5]} 28. Rxe5 {[%clk 0:00:10.7]} 28... Ng6 {[%clk
0:02:01.3]} 29. Re8+ {[%clk 0:00:09.6]} 29... Rxe8 {[%clk 0:02:01.7]} 30. Qxe8+
{[%clk 0:00:10.2]} 30... Nf8 {[%clk 0:02:02.4]} 31. Re1 {[%clk 0:00:05.9]} 31...
g6 {[%clk 0:01:59.5]} 32. Re7 {[%clk 0:00:06.2]} 32... Qf4 {[%clk 0:02:00.1]}
33. Kg2 {[%clk 0:00:03.6]} 33... Rxa4 {[%clk 0:01:46.4]} 34. Rxb7 {[%clk
0:00:03.9]} 34... Rb4 {[%clk 0:01:46.8]} 35. Ra7 {[%clk 0:00:03.4]} 35... Rb8
{[%clk 0:01:46.6]} 36. Qxc6 {[%clk 0:00:02.3]} 36... Ne6 {[%clk 0:01:44.2]} 37.
Rxa5 {[%clk 0:00:01.5]} 37... Qf6 {[%clk 0:01:38.5]} 38. Ra8 {[%clk 0:00:01.7]}
38... Nf4+ {[%clk 0:01:38.2]} 39. Kh2 {[%clk 0:00:01.7]} 39... Qxc6 {[%clk
0:01:38.7]} 40. Rxb8+ {[%clk 0:00:02.2]} 40... Kg7 {[%clk 0:01:39.3]} 41. Rb2
{[%clk 0:00:01.7]} 41... Qxf3 {[%clk 0:01:39.5]} 0-1

[Event "Late-Titled-Tuesday-Blitz-May-14-2024"]
[Site "Chess.com"]
[Date "2024.05.14"]
[Round "8"]
[White "NikitaShnadrygin"]
[Black "lucasran"]
[Result "1-0"]
[WhiteElo "2765"]
[BlackElo "2578"]
[TimeControl "180+1"]
[EndTime "15:25:57 PDT"]
[Termination "NikitaShnadrygin won on time"]

1. e4 {[%clk 0:03:00.9]} 1... c6 {[%clk 0:02:59.7]} 2. d4 {[%clk 0:03:00.6]}
2... d5 {[%clk 0:03:00.6]} 3. f3 {[%clk 0:03:01.2]} 3... g6 {[%clk 0:03:00.8]}
4. Nc3 {[%clk 0:02:59.6]} 4... Bg7 {[%clk 0:03:00.9]} 5. Be3 {[%clk 0:03:00.1]}
5... Qb6 {[%clk 0:03:01.1]} 6. Bd3 {[%clk 0:03:00.3]} 6... Qxb2 {[%clk 0:03:01]}
7. Nge2 {[%clk 0:03:00.9]} 7... dxe4 {[%clk 0:02:58.2]} 8. fxe4 {[%clk
0:03:01.8]} 8... e5 {[%clk 0:02:58.7]} 9. d5 {[%clk 0:02:56.6]} 9... Nf6 {[%clk
0:02:57.1]} 10. Rb1 {[%clk 0:02:49]} 10... Qa3 {[%clk 0:02:55.8]} 11. h3 {[%clk
0:02:41.9]} 11... O-O {[%clk 0:02:52.2]} 12. O-O {[%clk 0:02:41.8]} 12... cxd5
{[%clk 0:02:47.6]} 13. exd5 {[%clk 0:02:13.9]} 13... e4 {[%clk 0:02:22.7]} 14.
Bc4 {[%clk 0:02:09.8]} 14... Nbd7 {[%clk 0:02:12.9]} 15. Bd4 {[%clk 0:02:07.1]}
15... Re8 {[%clk 0:01:57.4]} 16. Nb5 {[%clk 0:02:05.8]} 16... Qa5 {[%clk
0:01:38.3]} 17. d6 {[%clk 0:02:04.7]} 17... Ne5 {[%clk 0:01:28.3]} 18. Nc7
{[%clk 0:01:52.7]} 18... Nxc4 {[%clk 0:01:27.7]} 19. Bxf6 {[%clk 0:01:51.1]}
19... Ne3 {[%clk 0:00:44]} 20. Qd4 {[%clk 0:01:42.1]} 20... Nxf1 {[%clk
0:00:17.7]} 21. Bxg7 {[%clk 0:01:35.1]} 21... Bd7 {[%clk 0:00:06.6]} 22. Bh8
{[%clk 0:01:32.1]} 22... f6 {[%clk 0:00:07]} 23. Qxf6 {[%clk 0:01:23.6]} 23...
Qc5+ {[%clk 0:00:07.5]} 24. Nd4 {[%clk 0:01:22.1]} 24... Qe5 {[%clk 0:00:05.8]}
25. Qxe5 {[%clk 0:01:21.3]} 25... Rxe5 {[%clk 0:00:06.7]} 26. Bxe5 {[%clk
0:01:21.6]} 26... Nd2 {[%clk 0:00:06.7]} 27. Re1 {[%clk 0:01:16.1]} 27... Nc4
{[%clk 0:00:01.6]} 28. Bg3 {[%clk 0:01:13.7]} 28... Rc8 {[%clk 0:00:01.2]} 29.
Nd5 {[%clk 0:01:14]} 1-0

[Event "Late-Titled-Tuesday-Blitz-May-14-2024"]
[Site "Chess.com"]
[Date "2024.05.14"]
[Round "8"]
[White "NCchamp"]
[Black "Walter_White_Poland"]
[Result "1-0"]
[WhiteElo "2317"]
[BlackElo "2383"]
[TimeControl "180+1"]
[EndTime "15:25:58 PDT"]
[Termination "NCchamp won by resignation"]

1. d4 {[%clk 0:02:58.8]} 1... d5 {[%clk 0:02:22.8]} 2. c4 {[%clk 0:02:57.9]}
2... e6 {[%clk 0:02:21.5]} 3. Nc3 {[%clk 0:02:56]} 3... Be7 {[%clk 0:02:19.9]}
4. cxd5 {[%clk 0:02:47.2]} 4... exd5 {[%clk 0:02:19.1]} 5. Nf3 {[%clk
0:02:48.1]} 5... c6 {[%clk 0:02:15.6]} 6. Bf4 {[%clk 0:02:44.4]} 6... Bf5 {[%clk
0:02:14.9]} 7. e3 {[%clk 0:02:43.7]} 7... Nf6 {[%clk 0:02:14]} 8. Bd3 {[%clk
0:02:43.6]} 8... Bg6 {[%clk 0:02:10]} 9. Ne5 {[%clk 0:02:43]} 9... Nbd7 {[%clk
0:02:08.2]} 10. Nxg6 {[%clk 0:02:33.6]} 10... hxg6 {[%clk 0:02:07.9]} 11. Qf3
{[%clk 0:02:30.2]} 11... Nf8 {[%clk 0:02:07.1]} 12. Be5 {[%clk 0:02:27.6]} 12...
N8d7 {[%clk 0:01:53.6]} 13. Bg3 {[%clk 0:02:23]} 13... Nh5 {[%clk 0:01:50.2]}
14. O-O-O {[%clk 0:02:15.3]} 14... Qa5 {[%clk 0:01:46.9]} 15. Kb1 {[%clk
0:02:15.2]} 15... b5 {[%clk 0:01:42.2]} 16. e4 {[%clk 0:02:10]} 16... b4 {[%clk
0:01:35.3]} 17. Ne2 {[%clk 0:02:07.3]} 17... b3 {[%clk 0:01:22.5]} 18. axb3
{[%clk 0:02:05.7]} 18... Ndf6 {[%clk 0:00:50.9]} 19. Nc3 {[%clk 0:01:55.1]}
19... Nxg3 {[%clk 0:00:42.9]} 20. hxg3 {[%clk 0:01:54.4]} 20... Rxh1 {[%clk
0:00:42.7]} 21. Rxh1 {[%clk 0:01:53]} 21... O-O-O {[%clk 0:00:42.6]} 22. e5
{[%clk 0:01:51.7]} 22... Ne4 {[%clk 0:00:31.5]} 23. Bxe4 {[%clk 0:01:32.6]}
23... dxe4 {[%clk 0:00:30.8]} 24. Qxe4 {[%clk 0:01:33.1]} 24... Qb4 {[%clk
0:00:26.5]} 25. Qxc6+ {[%clk 0:01:25]} 25... Kb8 {[%clk 0:00:26.5]} 26. Nd5
{[%clk 0:01:24.1]} 26... Qxd4 {[%clk 0:00:21.1]} 27. Qb5+ {[%clk 0:01:01.6]}
27... Kc8 {[%clk 0:00:11.6]} 28. Nxe7+ {[%clk 0:01:00.3]} 28... Kc7 {[%clk
0:00:10.9]} 29. Rc1+ {[%clk 0:01:00.4]} 1-0

[Event "Late-Titled-Tuesday-Blitz-May-14-2024"]
[Site "Chess.com"]
[Date "2024.05.14"]
[Round "8"]
[White "imdvb6307"]
[Black "Hamisandwich"]
[Result "0-1"]
[WhiteElo "2537"]
[BlackElo "2750"]
[TimeControl "180+1"]
[EndTime "15:26:02 PDT"]
[Termination "Hamisandwich won on time"]

1. d4 {[%clk 0:03:00.9]} 1... c6 {[%clk 0:02:52.9]} 2. e4 {[%clk 0:02:59.9]}
2... a6 {[%clk 0:02:53]} 3. d5 {[%clk 0:02:31.7]} 3... d6 {[%clk 0:02:48.5]} 4.
c4 {[%clk 0:02:27.7]} 4... g6 {[%clk 0:02:34.5]} 5. Bd3 {[%clk 0:02:19.6]} 5...
Bg7 {[%clk 0:02:33.3]} 6. Ne2 {[%clk 0:02:19.6]} 6... Nf6 {[%clk 0:02:30.9]} 7.
h3 {[%clk 0:02:10.1]} 7... O-O {[%clk 0:02:24.4]} 8. O-O {[%clk 0:02:09.1]} 8...
e6 {[%clk 0:02:24.5]} 9. dxe6 {[%clk 0:01:51.5]} 9... Bxe6 {[%clk 0:02:25.4]}
10. Nbc3 {[%clk 0:01:47.3]} 10... Nbd7 {[%clk 0:02:21.7]} 11. b3 {[%clk
0:01:37.4]} 11... d5 {[%clk 0:02:13.7]} 12. cxd5 {[%clk 0:01:19.9]} 12... cxd5
{[%clk 0:02:14.6]} 13. exd5 {[%clk 0:01:16.1]} 13... Nxd5 {[%clk 0:02:14.6]} 14.
Bb2 {[%clk 0:01:16]} 14... Nb4 {[%clk 0:02:11.6]} 15. Be4 {[%clk 0:01:11.7]}
15... Nc5 {[%clk 0:02:11.6]} 16. Bf3 {[%clk 0:00:36.2]} 16... Nbd3 {[%clk
0:01:57.4]} 17. Ba3 {[%clk 0:00:32]} 17... Qa5 {[%clk 0:01:52.9]} 18. Na4 {[%clk
0:00:09]} 18... Rfd8 {[%clk 0:01:30.8]} 19. Rb1 {[%clk 0:00:06.7]} 19... Ne5
{[%clk 0:01:17.9]} 20. Qc1 {[%clk 0:00:05.7]} 20... Nxf3+ {[%clk 0:01:18]} 21.
gxf3 {[%clk 0:00:05.3]} 21... Nxa4 {[%clk 0:01:15.6]} 22. bxa4 {[%clk
0:00:04.8]} 22... Rac8 {[%clk 0:01:12.6]} 23. Qe3 {[%clk 0:00:03.6]} 23... Qxa4
{[%clk 0:01:05.8]} 24. Rfc1 {[%clk 0:00:00.7]} 24... Rxc1+ {[%clk 0:00:58.3]}
25. Rxc1 {[%clk 0:00:00.5]} 25... Rd1+ {[%clk 0:00:56.9]} 0-1

[Event "Late-Titled-Tuesday-Blitz-May-14-2024"]
[Site "Chess.com"]
[Date "2024.05.14"]
[Round "8"]
[White "katharinareinecke"]
[Black "RianKapriaga"]
[Result "0-1"]
[WhiteElo "1906"]
[BlackElo "2286"]
[TimeControl "180+1"]
[EndTime "15:26:09 PDT"]
[Termination "RianKapriaga won on time"]

1. d4 {[%clk 0:03:00.9]} 1... Nf6 {[%clk 0:02:58.8]} 2. Nf3 {[%clk 0:03:00.5]}
2... d5 {[%clk 0:02:56.9]} 3. g3 {[%clk 0:03:00]} 3... c6 {[%clk 0:02:55.3]} 4.
Bg2 {[%clk 0:02:59.9]} 4... Bg4 {[%clk 0:02:54.5]} 5. O-O {[%clk 0:02:59.7]}
5... Bxf3 {[%clk 0:02:54.6]} 6. Bxf3 {[%clk 0:02:59.6]} 6... Nbd7 {[%clk
0:02:54.6]} 7. c4 {[%clk 0:02:58.9]} 7... e6 {[%clk 0:02:54.4]} 8. Nc3 {[%clk
0:02:58]} 8... Bb4 {[%clk 0:02:53.5]} 9. a3 {[%clk 0:02:55.7]} 9... Bxc3 {[%clk
0:02:52.1]} 10. bxc3 {[%clk 0:02:55.9]} 10... O-O {[%clk 0:02:52.2]} 11. cxd5
{[%clk 0:02:46.1]} 11... exd5 {[%clk 0:02:51.4]} 12. Qc2 {[%clk 0:02:36.2]}
12... b5 {[%clk 0:02:48.4]} 13. a4 {[%clk 0:02:32.5]} 13... a6 {[%clk
0:02:48.5]} 14. axb5 {[%clk 0:02:32]} 14... axb5 {[%clk 0:02:49.4]} 15. Ba3
{[%clk 0:02:29.1]} 15... Re8 {[%clk 0:02:48.1]} 16. Bb4 {[%clk 0:02:27.5]} 16...
Ne4 {[%clk 0:02:45]} 17. e3 {[%clk 0:02:17.9]} 17... Nb6 {[%clk 0:02:41.2]} 18.
Ra2 {[%clk 0:01:48.6]} 18... Ra4 {[%clk 0:02:31.8]} 19. Rfa1 {[%clk 0:01:45.3]}
19... Rxa2 {[%clk 0:02:26.9]} 20. Qxa2 {[%clk 0:01:39.5]} 20... Na4 {[%clk
0:02:27]} 21. Rc1 {[%clk 0:01:19.6]} 21... g6 {[%clk 0:02:20.8]} 22. Bd1 {[%clk
0:01:18.3]} 22... Qf6 {[%clk 0:02:14.1]} 23. Bxa4 {[%clk 0:01:14.8]} 23... bxa4
{[%clk 0:02:13.4]} 24. Rc2 {[%clk 0:01:06.8]} 24... Ra8 {[%clk 0:02:08.9]} 25.
Qa3 {[%clk 0:00:50]} 25... h5 {[%clk 0:02:04.9]} 26. Be7 {[%clk 0:00:48.7]}
26... Qf3 {[%clk 0:02:03.9]} 27. Ra2 {[%clk 0:00:30.1]} 27... Kg7 {[%clk
0:01:58.2]} 28. c4 {[%clk 0:00:15]} 28... g5 {[%clk 0:01:55.7]} 29. cxd5 {[%clk
0:00:14.8]} 29... cxd5 {[%clk 0:01:49.8]} 30. Qc1 {[%clk 0:00:06.3]} 30... Ra7
{[%clk 0:01:37.5]} 31. Qf1 {[%clk 0:00:06.2]} 31... Rxe7 {[%clk 0:01:37]} 32.
Rxa4 {[%clk 0:00:06]} 32... h4 {[%clk 0:01:33.1]} 33. Ra5 {[%clk 0:00:05.2]}
33... Rd7 {[%clk 0:01:28.2]} 34. Ra6 {[%clk 0:00:04.7]} 34... h3 {[%clk
0:01:27.2]} 35. Ra5 {[%clk 0:00:04]} 35... g4 {[%clk 0:01:23.5]} 36. Ra6 {[%clk
0:00:03]} 36... Nd2 {[%clk 0:01:22.5]} 0-1

[Event "Late-Titled-Tuesday-Blitz-May-14-2024"]
[Site "Chess.com"]
[Date "2024.05.14"]
[Round "8"]
[White "Oleg_Papayan"]
[Black "cthulhuuu"]
[Result "0-1"]
[WhiteElo "2608"]
[BlackElo "2486"]
[TimeControl "180+1"]
[EndTime "15:26:12 PDT"]
[Termination "cthulhuuu won by checkmate"]

1. e4 {[%clk 0:03:00.9]} 1... d6 {[%clk 0:03:00.1]} 2. d4 {[%clk 0:03:00.5]}
2... Nf6 {[%clk 0:02:56.3]} 3. Nc3 {[%clk 0:02:59.8]} 3... c6 {[%clk 0:02:56.7]}
4. Be3 {[%clk 0:02:56.3]} 4... b5 {[%clk 0:02:55.4]} 5. a3 {[%clk 0:02:55.8]}
5... e5 {[%clk 0:02:55.4]} 6. dxe5 {[%clk 0:02:54.3]} 6... dxe5 {[%clk
0:02:56.3]} 7. Qxd8+ {[%clk 0:02:54.7]} 7... Kxd8 {[%clk 0:02:56.5]} 8. f3
{[%clk 0:02:51.4]} 8... Be6 {[%clk 0:02:55]} 9. O-O-O+ {[%clk 0:02:37.3]} 9...
Kc7 {[%clk 0:02:54.7]} 10. Nge2 {[%clk 0:02:36.4]} 10... Nbd7 {[%clk 0:02:54.8]}
11. Kb1 {[%clk 0:02:29.2]} 11... a5 {[%clk 0:02:54.6]} 12. a4 {[%clk 0:02:14.4]}
12... b4 {[%clk 0:02:47]} 13. Na2 {[%clk 0:02:14.7]} 13... b3 {[%clk 0:02:47.4]}
14. Nac3 {[%clk 0:02:14.8]} 14... bxc2+ {[%clk 0:02:34.2]} 15. Kxc2 {[%clk
0:02:14.8]} 15... Rb8 {[%clk 0:02:34.8]} 16. Nc1 {[%clk 0:02:11.8]} 16... Bc5
{[%clk 0:02:32.4]} 17. Bxc5 {[%clk 0:01:34.2]} 17... Nxc5 {[%clk 0:02:33.3]} 18.
g3 {[%clk 0:01:33.2]} 18... Rb4 {[%clk 0:02:29.7]} 19. Be2 {[%clk 0:01:01.8]}
19... Rhb8 {[%clk 0:02:11.5]} 20. b3 {[%clk 0:00:44.9]} 20... Nxb3 {[%clk
0:01:55.9]} 21. Rdf1 {[%clk 0:00:39.9]} 21... Nd4+ {[%clk 0:01:47.5]} 22. Kd3
{[%clk 0:00:40.1]} 22... Rb2 {[%clk 0:01:39.4]} 23. f4 {[%clk 0:00:36.2]} 23...
Nd7 {[%clk 0:01:20.4]} 24. f5 {[%clk 0:00:25.2]} 24... Nc5+ {[%clk 0:01:20.4]}
25. Ke3 {[%clk 0:00:23.9]} 25... Nxe2 {[%clk 0:01:17.7]} 26. N1xe2 {[%clk
0:00:21.7]} 26... Bc4 {[%clk 0:01:17.8]} 27. f6 {[%clk 0:00:22.2]} 27... Bxe2
{[%clk 0:01:09.5]} 28. Nxe2 {[%clk 0:00:23.1]} 28... R8b3+ {[%clk 0:01:09.4]}
29. Kf2 {[%clk 0:00:23.7]} 29... Nxe4+ {[%clk 0:01:07.5]} 30. Ke1 {[%clk
0:00:24.3]} 30... Rb1+ {[%clk 0:01:06.4]} 31. Nc1 {[%clk 0:00:24.2]} 31... Rxc1+
{[%clk 0:01:05.7]} 32. Ke2 {[%clk 0:00:25.1]} 32... Rc2+ {[%clk 0:01:04.8]} 33.
Kd1 {[%clk 0:00:25.3]} 33... Rd2+ {[%clk 0:01:05.2]} 34. Kc1 {[%clk 0:00:25.8]}
34... Ra3 {[%clk 0:00:49.5]} 35. fxg7 {[%clk 0:00:24.9]} 35... Ra1# {[%clk
0:00:48.9]} 0-1

[Event "Late-Titled-Tuesday-Blitz-May-14-2024"]
[Site "Chess.com"]
[Date "2024.05.14"]
[Round "8"]
[White "s-dshubin"]
[Black "Boorchess"]
[Result "0-1"]
[WhiteElo "2323"]
[BlackElo "2583"]
[TimeControl "180+1"]
[EndTime "15:26:19 PDT"]
[Termination "Boorchess won by checkmate"]

1. e4 {[%clk 0:03:00.9]} 1... e5 {[%clk 0:02:58.6]} 2. Nf3 {[%clk 0:03:00.6]}
2... Nf6 {[%clk 0:02:58.8]} 3. Nxe5 {[%clk 0:02:58]} 3... d6 {[%clk 0:02:59]} 4.
Nf3 {[%clk 0:02:57.9]} 4... Nxe4 {[%clk 0:02:58]} 5. Nc3 {[%clk 0:02:58.6]} 5...
Nf6 {[%clk 0:02:58.2]} 6. Bc4 {[%clk 0:02:57.6]} 6... g6 {[%clk 0:02:54.2]} 7.
d4 {[%clk 0:02:56.7]} 7... Bg7 {[%clk 0:02:54.2]} 8. O-O {[%clk 0:02:56.7]} 8...
O-O {[%clk 0:02:54.3]} 9. Bg5 {[%clk 0:02:57.3]} 9... h6 {[%clk 0:02:53.9]} 10.
Bf4 {[%clk 0:02:54.2]} 10... Nc6 {[%clk 0:02:53.8]} 11. Qd2 {[%clk 0:02:51.8]}
11... Kh7 {[%clk 0:02:53.4]} 12. Nd5 {[%clk 0:02:40.2]} 12... Nxd5 {[%clk
0:02:49.5]} 13. Bxd5 {[%clk 0:02:41.1]} 13... Ne7 {[%clk 0:02:48.7]} 14. Bb3
{[%clk 0:02:40.2]} 14... Be6 {[%clk 0:02:48.1]} 15. c3 {[%clk 0:02:39.7]} 15...
Nd5 {[%clk 0:02:45]} 16. Bxd5 {[%clk 0:02:34.4]} 16... Bxd5 {[%clk 0:02:44.9]}
17. Ne1 {[%clk 0:02:34.7]} 17... Qd7 {[%clk 0:02:42.7]} 18. Nd3 {[%clk
0:02:34.3]} 18... a5 {[%clk 0:02:39.2]} 19. b3 {[%clk 0:02:33.6]} 19... b5
{[%clk 0:02:36.3]} 20. Rac1 {[%clk 0:02:33.3]} 20... a4 {[%clk 0:02:34.3]} 21.
c4 {[%clk 0:02:32.3]} 21... bxc4 {[%clk 0:02:31.5]} 22. bxc4 {[%clk 0:02:33.2]}
22... Be4 {[%clk 0:02:31]} 23. Rfe1 {[%clk 0:02:21.7]} 23... Rfe8 {[%clk
0:02:22.1]} 24. d5 {[%clk 0:02:19.9]} 24... a3 {[%clk 0:01:40.8]} 25. Nb4 {[%clk
0:02:12.6]} 25... g5 {[%clk 0:01:24]} 26. f3 {[%clk 0:01:56.5]} 26... Bg6 {[%clk
0:01:23.2]} 27. Be3 {[%clk 0:01:48.8]} 27... Bb2 {[%clk 0:01:22.9]} 28. Rcd1
{[%clk 0:01:38.8]} 28... Qf5 {[%clk 0:01:22.5]} 29. Bd4 {[%clk 0:01:35.2]} 29...
Rxe1+ {[%clk 0:01:06]} 30. Rxe1 {[%clk 0:01:33.9]} 30... Qf4 {[%clk 0:01:06]}
31. Qxf4 {[%clk 0:01:26.7]} 31... gxf4 {[%clk 0:01:06.9]} 32. Nc6 {[%clk
0:01:26.5]} 32... Bd3 {[%clk 0:01:03.5]} 33. Re7 {[%clk 0:01:20.4]} 33... Ra6
{[%clk 0:00:55]} 34. Rxf7+ {[%clk 0:01:17.6]} 34... Kg8 {[%clk 0:00:55]} 35.
Rg7+ {[%clk 0:01:13.7]} 35... Kf8 {[%clk 0:00:54.9]} 36. Rxc7 {[%clk 0:01:03.4]}
36... Rxc6 {[%clk 0:00:54.3]} 37. Rxc6 {[%clk 0:01:02.9]} 37... Bxd4+ {[%clk
0:00:54.1]} 38. Kh1 {[%clk 0:01:02.4]} 38... Bc5 {[%clk 0:00:54.4]} 39. g3
{[%clk 0:01:00.2]} 39... Bb1 {[%clk 0:00:54.1]} 40. Rc8+ {[%clk 0:00:45.8]}
40... Kf7 {[%clk 0:00:53.9]} 41. Rh8 {[%clk 0:00:42.6]} 41... Bxa2 {[%clk
0:00:53.1]} 42. Rxh6 {[%clk 0:00:41.8]} 42... Bxc4 {[%clk 0:00:52.5]} 43. Rh8
{[%clk 0:00:40.7]} 43... a2 {[%clk 0:00:52.3]} 44. Ra8 {[%clk 0:00:39.8]} 44...
Bd4 {[%clk 0:00:51.6]} 45. gxf4 {[%clk 0:00:39]} 45... Bxd5 {[%clk 0:00:49.6]}
46. Ra3 {[%clk 0:00:36.2]} 46... a1=Q+ {[%clk 0:00:48.7]} 47. Rxa1 {[%clk
0:00:34.8]} 47... Bxf3# {[%clk 0:00:47.7]} 0-1

[Event "Late-Titled-Tuesday-Blitz-May-14-2024"]
[Site "Chess.com"]
[Date "2024.05.14"]
[Round "8"]
[White "MarceloPlaya"]
[Black "Eliwood44"]
[Result "1-0"]
[WhiteElo "2341"]
[BlackElo "2425"]
[TimeControl "180+1"]
[EndTime "15:26:20 PDT"]
[Termination "MarceloPlaya won by checkmate"]

1. e4 {[%clk 0:03:00.9]} 1... e5 {[%clk 0:02:58.6]} 2. Nf3 {[%clk 0:03:00.1]}
2... Nc6 {[%clk 0:02:59.1]} 3. d4 {[%clk 0:02:59.7]} 3... exd4 {[%clk 0:03:00]}
4. Bc4 {[%clk 0:02:59.7]} 4... Nf6 {[%clk 0:03:00.2]} 5. Ng5 {[%clk 0:02:59.3]}
5... d5 {[%clk 0:02:55.2]} 6. exd5 {[%clk 0:02:58.7]} 6... Qe7+ {[%clk
0:02:55.5]} 7. Kf1 {[%clk 0:02:58.1]} 7... Na5 {[%clk 0:02:55.7]} 8. Qxd4 {[%clk
0:02:56.7]} 8... Nxc4 {[%clk 0:02:54.2]} 9. Qxc4 {[%clk 0:02:56.8]} 9... h6
{[%clk 0:02:54.1]} 10. Nc3 {[%clk 0:02:54.6]} 10... hxg5 {[%clk 0:02:45.6]} 11.
Bxg5 {[%clk 0:02:53.7]} 11... Qc5 {[%clk 0:02:45.5]} 12. Re1+ {[%clk 0:02:52]}
12... Kd8 {[%clk 0:02:45]} 13. Qf4 {[%clk 0:02:35]} 13... Qd6 {[%clk 0:02:32.7]}
14. Qd2 {[%clk 0:02:26.3]} 14... a6 {[%clk 0:02:11.8]} 15. Ne4 {[%clk 0:02:20]}
15... Qb6 {[%clk 0:02:10.7]} 16. d6 {[%clk 0:02:07.6]} 16... Bxd6 {[%clk
0:02:10.2]} 17. Nxf6 {[%clk 0:02:03.7]} 17... Qb5+ {[%clk 0:02:10.3]} 18. Kg1
{[%clk 0:02:00.8]} 18... Be6 {[%clk 0:01:57.4]} 19. Ne4+ {[%clk 0:01:48.2]}
19... Kd7 {[%clk 0:01:54.3]} 20. Bf4 {[%clk 0:01:40.9]} 20... Qd5 {[%clk
0:01:47.3]} 21. Qxd5 {[%clk 0:01:28.5]} 21... Bxd5 {[%clk 0:01:48.2]} 22. Nxd6
{[%clk 0:01:28.1]} 22... cxd6 {[%clk 0:01:47.4]} 23. Rd1 {[%clk 0:01:26.3]}
23... Ke6 {[%clk 0:01:45.3]} 24. c4 {[%clk 0:01:20.8]} 24... Bxc4 {[%clk
0:01:32.7]} 25. Rxd6+ {[%clk 0:01:19.8]} 25... Kf5 {[%clk 0:01:33]} 26. b3
{[%clk 0:00:51.6]} 26... Kxf4 {[%clk 0:01:30]} 27. Rd4+ {[%clk 0:00:46.9]} 27...
Kf5 {[%clk 0:01:28.5]} 28. Rxc4 {[%clk 0:00:43.3]} 28... Rad8 {[%clk 0:01:29.1]}
29. g4+ {[%clk 0:00:38.2]} 29... Kg6 {[%clk 0:01:26.5]} 30. Kg2 {[%clk
0:00:35.9]} 30... Rd2 {[%clk 0:01:27.1]} 31. a4 {[%clk 0:00:29.3]} 31... Re8
{[%clk 0:01:27.5]} 32. h4 {[%clk 0:00:27.1]} 32... Ree2 {[%clk 0:01:26.7]} 33.
Rf4 {[%clk 0:00:23.3]} 33... Rb2 {[%clk 0:01:25.8]} 34. h5+ {[%clk 0:00:22]}
34... Kh7 {[%clk 0:01:24.6]} 35. Rxf7 {[%clk 0:00:21.4]} 35... Rxb3 {[%clk
0:01:23.7]} 36. h6 {[%clk 0:00:21.2]} 36... Rb4 {[%clk 0:01:17.6]} 37. hxg7+
{[%clk 0:00:19.2]} 37... Kg8 {[%clk 0:01:14.5]} 38. Rh8+ {[%clk 0:00:18.7]}
38... Kxf7 {[%clk 0:01:14.9]} 39. g8=Q+ {[%clk 0:00:18.3]} 39... Kf6 {[%clk
0:01:15.4]} 40. Qf8+ {[%clk 0:00:16.9]} 40... Ke5 {[%clk 0:01:15.6]} 41. Qxb4
{[%clk 0:00:16.3]} 41... Re4 {[%clk 0:01:15.2]} 42. Qc5+ {[%clk 0:00:14.9]}
42... Kf4 {[%clk 0:01:15]} 43. Rf8+ {[%clk 0:00:14.7]} 43... Kxg4 {[%clk
0:01:14.9]} 44. Qf5+ {[%clk 0:00:14.5]} 44... Kh4 {[%clk 0:01:15.8]} 45. Qxe4+
{[%clk 0:00:14.1]} 45... Kh5 {[%clk 0:01:15.8]} 46. Qh7+ {[%clk 0:00:12.3]}
46... Kg5 {[%clk 0:01:15.8]} 47. Qg7+ {[%clk 0:00:12.4]} 47... Kh5 {[%clk
0:01:15.4]} 48. Rh8# {[%clk 0:00:12.5]} 1-0